[Event "Goteborg Open 2018"]
[Site "Molnlycke kulturhus, Biblioteksgatan 2, Molnlycke, Sweden"]
[Date "2018.08.17"]
[Round "1.7"]
[White "Subramanian, Aditya"]
[Black "Henningsson, Eddy"]
[Result "0-1"]
[TimeControl "15 minutes + 5 seconds per move from move one (Round 1 - 4) / 90 minutes + 30 seconds per move from move one (Round 5 - 8)"]
[WhiteFideId "1718924"]
[BlackFideId "1753843"]
[WhiteElo "2151"]
[BlackElo "1791"]

1. d4 {[%clk 00:15:02]} {[%emt 00:00:03]} e6 {[%clk 00:15:03]} {[%emt
00:00:02]} 2. e4 {[%clk 00:14:54]} {[%emt 00:00:13]} d5 {[%clk 00:15:01]}
{[%emt 00:00:06]} 3. exd5 {[%clk 00:14:58]} {[%emt 00:00:02]} exd5 {[%clk
00:15:05]} {[%emt 00:00:02]} 4. c4 {[%clk 00:15:02]} Nf6 {[%clk 00:14:52]}
{[%emt 00:00:18]} 5. Nc3 {[%clk 00:15:02]} {[%emt 00:00:05]} Bb4 {[%clk
00:14:08]} {[%emt 00:00:48]} 6. Bd3 {[%clk 00:15:06]} {[%emt 00:00:02]} O-O
{[%clk 00:14:03]} {[%emt 00:00:10]} 7. Nge2 {[%clk 00:15:10]} Bg4 {[%clk
00:13:54]} {[%emt 00:00:15]} 8. O-O {[%clk 00:14:56]} {[%emt 00:00:18]} dxc4
{[%clk 00:13:08]} {[%emt 00:00:52]} 9. Bxc4 {[%clk 00:14:59]} {[%emt 00:00:02]}
c6 {[%clk 00:12:47]} {[%emt 00:00:26]} 10. Bg5 {[%clk 00:14:39]} {[%emt
00:00:25]} Nbd7 {[%clk 00:12:45]} {[%emt 00:00:07]} 11. Qb3 {[%clk 00:14:05]}
{[%emt 00:00:39]} Qb6 {[%clk 00:10:55]} {[%emt 00:01:55]} 12. Be3 {[%clk
00:13:35]} {[%emt 00:00:34]} Bd6 {[%clk 00:10:45]} {[%emt 00:00:15]} 13. Qc2
{[%clk 00:12:39]} {[%emt 00:01:02]} Qc7 {[%clk 00:10:25]} {[%emt 00:00:25]} 14.
Rac1 {[%clk 00:12:42]} {[%emt 00:00:02]} Bxh2+ {[%clk 00:10:11]} {[%emt
00:00:19]} 15. Kh1 {[%clk 00:12:46]} Bd6 {[%clk 00:09:58]} {[%emt 00:00:19]} 16.
Bb3 {[%clk 00:12:20]} {[%emt 00:00:29]} Qa5 {[%clk 00:08:57]} {[%emt 00:01:07]}
17. Ng3 {[%clk 00:09:39]} {[%emt 00:02:46]} Bxg3 {[%clk 00:08:59]} {[%emt
00:00:03]} 18. fxg3 {[%clk 00:09:42]} {[%emt 00:00:02]} Qh5+ {[%clk 00:09:01]}
{[%emt 00:00:03]} 19. Kg1 {[%clk 00:09:45]} {[%emt 00:00:02]} Rae8 {[%clk
00:06:29]} {[%emt 00:02:38]} 20. Bf4 {[%clk 00:09:22]} {[%emt 00:00:27]} Be6
{[%clk 00:06:11]} {[%emt 00:00:23]} 21. g4 {[%clk 00:06:57]} {[%emt 00:02:30]}
Nxg4 {[%clk 00:05:38]} {[%emt 00:00:38]} 22. Rf3 {[%clk 00:06:43]} {[%emt
00:00:20]} Bf5 {[%clk 00:05:02]} {[%emt 00:00:41]} 23. Qd2 {[%clk 00:06:46]}
{[%emt 00:00:01]} Ngf6 {[%clk 00:04:27]} {[%emt 00:00:40]} 24. Rcf1 {[%clk
00:05:17]} {[%emt 00:01:35]} Ne4 {[%clk 00:04:02]} {[%emt 00:00:29]} 25. Nxe4
{[%clk 00:05:20]} {[%emt 00:00:02]} Rxe4 {[%clk 00:04:01]} {[%emt 00:00:05]} 26.
Bd6 {[%clk 00:05:10]} {[%emt 00:00:15]} Rh4 {[%clk 00:03:31]} {[%emt 00:00:35]}
27. Qe3 {[%clk 00:03:35]} {[%emt 00:01:40]} Rh1+ {[%clk 00:02:54]} {[%emt
00:00:42]} 28. Kf2 {[%clk 00:03:39]} Rxf1+ {[%clk 00:02:55]} {[%emt 00:00:05]}
29. Kxf1 {[%clk 00:03:42]} {[%emt 00:00:02]} Nf6 {[%clk 00:01:46]} {[%emt
00:01:14]} 30. Qe7 {[%clk 00:03:34]} {[%emt 00:00:13]} Re8 {[%clk 00:01:37]}
{[%emt 00:00:14]} 31. Bxf7+ {[%clk 00:03:24]} {[%emt 00:00:14]} Qxf7 {[%clk
00:01:39]} {[%emt 00:00:03]} 32. Qxf7+ {[%clk 00:03:27]} {[%emt 00:00:02]} Kxf7
{[%clk 00:01:43]} {[%emt 00:00:02]} 33. Rxf5 {[%clk 00:03:30]} {[%emt
00:00:03]} Ke6 {[%clk 00:01:36]} {[%emt 00:00:11]} 0-1

[Event "Goteborg Open 2018"]
[Site "Molnlycke kulturhus, Biblioteksgatan 2, Molnlycke, Sweden"]
[Date "2018.08.17"]
[Round "1.8"]
[White "Vu, Melvin"]
[Black "Maddens, Martijn"]
[Result "0-1"]
[TimeControl "15 minutes + 5 seconds per move from move one (Round 1 - 4) / 90 minutes + 30 seconds per move from move one (Round 5 - 8)"]
[BlackTitle "CM"]
[WhiteFideId "1737481"]
[BlackFideId "206962"]
[WhiteElo "1788"]
[BlackElo "2141"]

1. e4 {[%clk 00:15:03]} {[%emt 00:00:02]} c5 {[%clk 00:15:03]} {[%emt
00:00:02]} 2. d4 {[%clk 00:15:06]} {[%emt 00:00:02]} cxd4 {[%clk 00:15:06]}
{[%emt 00:00:02]} 3. c3 {[%clk 00:15:10]} {[%emt 00:00:01]} Nf6 {[%clk
00:15:10]} {[%emt 00:00:01]} 4. e5 {[%clk 00:15:14]} {[%emt 00:00:01]} Nd5
{[%clk 00:15:14]} 5. Nf3 {[%clk 00:15:17]} {[%emt 00:00:02]} e6 {[%clk
00:15:12]} {[%emt 00:00:07]} 6. cxd4 {[%clk 00:15:20]} {[%emt 00:00:02]} d6
{[%clk 00:15:14]} {[%emt 00:00:03]} 7. Bb5+ {[%clk 00:14:52]} {[%emt 00:00:33]}
Bd7 {[%clk 00:14:53]} {[%emt 00:00:26]} 8. Bxd7+ {[%clk 00:14:53]} {[%emt
00:00:04]} Nxd7 {[%clk 00:14:57]} {[%emt 00:00:01]} 9. O-O {[%clk 00:14:19]}
{[%emt 00:00:38]} Be7 {[%clk 00:14:39]} {[%emt 00:00:23]} 10. Nc3 {[%clk
00:13:56]} {[%emt 00:00:28]} Nxc3 {[%clk 00:14:34]} {[%emt 00:00:11]} 11. bxc3
{[%clk 00:14:01]} dxe5 {[%clk 00:13:51]} {[%emt 00:00:48]} 12. dxe5 {[%clk
00:13:53]} {[%emt 00:00:13]} Qc7 {[%clk 00:13:52]} {[%emt 00:00:03]} 13. Bf4
{[%clk 00:12:51]} {[%emt 00:01:07]} O-O {[%clk 00:13:07]} {[%emt 00:00:50]} 14.
Rc1 {[%clk 00:10:59]} {[%emt 00:01:59]} Rfd8 {[%clk 00:13:08]} {[%emt
00:00:03]} 15. Qe2 {[%clk 00:10:46]} {[%emt 00:00:17]} Nb6 {[%clk 00:10:27]}
{[%emt 00:02:48]} 16. c4 {[%clk 00:08:39]} {[%emt 00:02:11]} Rac8 {[%clk
00:10:14]} {[%emt 00:00:18]} 17. Be3 {[%clk 00:07:44]} {[%emt 00:00:59]} Bc5
{[%clk 00:07:30]} {[%emt 00:02:50]} 18. Bxc5 {[%clk 00:05:15]} {[%emt
00:02:34]} Qxc5 {[%clk 00:07:33]} {[%emt 00:00:02]} 19. Nd2 {[%clk 00:05:17]}
{[%emt 00:00:02]} Nd7 {[%clk 00:06:01]} {[%emt 00:01:37]} 20. Rfe1 {[%clk
00:05:00]} {[%emt 00:00:22]} Qa3 {[%clk 00:05:07]} {[%emt 00:00:59]} 21. Nb3
{[%clk 00:04:49]} {[%emt 00:00:15]} a5 {[%clk 00:04:41]} {[%emt 00:00:32]} 22.
h3 {[%clk 00:03:29]} {[%emt 00:01:25]} a4 {[%clk 00:04:43]} {[%emt 00:00:03]}
23. Nd4 {[%clk 00:03:32]} Qc5 {[%clk 00:04:16]} {[%emt 00:00:33]} 24. Nb5
{[%clk 00:03:16]} {[%emt 00:00:20]} Rc6 {[%clk 00:03:34]} {[%emt 00:00:47]} 25.
Red1 {[%clk 00:02:23]} {[%emt 00:00:58]} Qe7 {[%clk 00:03:15]} {[%emt
00:00:24]} 26. Nd4 {[%clk 00:02:00]} {[%emt 00:00:28]} Rc5 {[%clk 00:02:37]}
{[%emt 00:00:43]} 27. f4 {[%clk 00:01:50]} {[%emt 00:00:15]} h6 {[%clk
00:02:11]} {[%emt 00:00:31]} 28. Qe4 {[%clk 00:01:44]} {[%emt 00:00:11]} Nb6
{[%clk 00:01:37]} {[%emt 00:00:39]} 29. Qe2 {[%clk 00:00:42]} {[%emt 00:01:07]}
Rdc8 {[%clk 00:01:26]} {[%emt 00:00:17]} 30. Nb5 {[%clk 00:00:40]} {[%emt
00:00:07]} Rxc4 {[%clk 00:01:15]} {[%emt 00:00:16]} 31. Rxc4 {[%clk 00:00:38]}
{[%emt 00:00:06]} Nxc4 {[%clk 00:01:14]} {[%emt 00:00:06]} 32. Nd6 {[%clk
00:00:35]} {[%emt 00:00:08]} Nxd6 {[%clk 00:01:15]} {[%emt 00:00:04]} 33. exd6
{[%clk 00:00:39]} {[%emt 00:00:01]} Qd7 {[%clk 00:01:16]} {[%emt 00:00:04]} 34.
Qe5 {[%clk 00:00:29]} {[%emt 00:00:15]} f6 {[%clk 00:00:49]} {[%emt 00:00:33]}
35. Qa5 {[%clk 00:00:32]} Kf7 {[%clk 00:00:44]} {[%emt 00:00:10]} 36. Kh2
{[%clk 00:00:32]} {[%emt 00:00:05]} b5 {[%clk 00:00:40]} {[%emt 00:00:10]} 37.
Qd2 {[%clk 00:00:18]} {[%emt 00:00:18]} Rc6 {[%clk 00:00:30]} {[%emt 00:00:15]}
38. Qd3 {[%clk 00:00:09]} {[%emt 00:00:14]} Rb6 {[%clk 00:00:23]} {[%emt
00:00:13]} 39. a3 {[%clk 00:00:08]} {[%emt 00:00:06]} b4 {[%emt 00:00:27]} 0-1

[Event "Goteborg Open 2018"]
[Site "Molnlycke kulturhus, Biblioteksgatan 2, Molnlycke, Sweden"]
[Date "2018.08.17"]
[Round "1.9"]
[White "Petersson, Baldur Teodor"]
[Black "Strom-Engdahl, Alexander"]
[Result "0-1"]
[TimeControl "15 minutes + 5 seconds per move from move one (Round 1 - 4) / 90 minutes + 30 seconds per move from move one (Round 5 - 8)"]
[WhiteTitle "CM"]
[WhiteFideId "2309157"]
[BlackFideId "1741586"]
[WhiteElo "2138"]
[BlackElo "1747"]

1. e4 {[%clk 00:15:02]} {[%emt 00:00:03]} e5 {[%clk 00:14:54]} {[%emt
00:00:12]} 2. Nf3 {[%clk 00:15:03]} {[%emt 00:00:03]} Nf6 {[%clk 00:14:57]}
{[%emt 00:00:02]} 3. d4 {[%clk 00:14:32]} {[%emt 00:00:37]} Nxe4 {[%clk
00:14:59]} {[%emt 00:00:03]} 4. Nxe5 {[%clk 00:14:27]} {[%emt 00:00:10]} d6
{[%clk 00:14:09]} {[%emt 00:00:55]} 5. Nf3 {[%clk 00:14:04]} {[%emt 00:00:28]}
Be7 {[%clk 00:13:33]} {[%emt 00:00:41]} 6. Bd3 {[%clk 00:13:25]} {[%emt
00:00:43]} Nf6 {[%clk 00:13:30]} {[%emt 00:00:08]} 7. h3 {[%clk 00:12:53]}
{[%emt 00:00:37]} O-O {[%clk 00:12:38]} {[%emt 00:00:56]} 8. O-O {[%clk
00:12:54]} {[%emt 00:00:04]} c6 {[%clk 00:10:31]} {[%emt 00:02:12]} 9. Bf4
{[%clk 00:11:38]} {[%emt 00:01:21]} Re8 {[%clk 00:08:58]} {[%emt 00:01:38]} 10.
c3 {[%clk 00:11:29]} {[%emt 00:00:14]} Nbd7 {[%clk 00:08:59]} {[%emt 00:00:04]}
11. Nbd2 {[%clk 00:11:27]} {[%emt 00:00:07]} d5 {[%clk 00:08:37]} {[%emt
00:00:27]} 12. Qc2 {[%clk 00:11:18]} {[%emt 00:00:14]} h6 {[%clk 00:08:25]}
{[%emt 00:00:17]} 13. Rfe1 {[%clk 00:11:05]} {[%emt 00:00:18]} Nb6 {[%clk
00:07:21]} {[%emt 00:01:08]} 14. Ne5 {[%clk 00:10:32]} {[%emt 00:00:38]} Be6
{[%clk 00:07:22]} {[%emt 00:00:04]} 15. Ndf3 {[%clk 00:09:50]} {[%emt
00:00:47]} Bd6 {[%clk 00:06:43]} {[%emt 00:00:45]} 16. Re2 {[%clk 00:09:10]}
{[%emt 00:00:45]} Qc7 {[%clk 00:06:39]} {[%emt 00:00:09]} 17. Qd2 {[%clk
00:07:36]} {[%emt 00:01:39]} Nbd7 {[%clk 00:05:43]} {[%emt 00:01:00]} 18. Rae1
{[%clk 00:06:28]} {[%emt 00:01:12]} b6 {[%clk 00:04:19]} {[%emt 00:01:29]} 19.
Bg3 {[%clk 00:04:56]} {[%emt 00:01:38]} c5 {[%clk 00:04:02]} {[%emt 00:00:23]}
20. Nxd7 {[%clk 00:04:40]} {[%emt 00:00:20]} Qxd7 {[%clk 00:03:38]} {[%emt
00:00:29]} 21. Bxd6 {[%clk 00:04:01]} {[%emt 00:00:44]} Qxd6 {[%clk 00:03:40]}
{[%emt 00:00:03]} 22. Bc2 {[%clk 00:03:17]} {[%emt 00:00:49]} c4 {[%clk
00:03:27]} {[%emt 00:00:18]} 23. Ne5 {[%clk 00:03:02]} {[%emt 00:00:20]} b5
{[%clk 00:03:22]} {[%emt 00:00:10]} 24. a3 {[%clk 00:03:04]} {[%emt 00:00:03]}
a5 {[%clk 00:02:45]} {[%emt 00:00:42]} 25. f4 {[%clk 00:02:56]} {[%emt
00:00:14]} b4 {[%clk 00:02:18]} {[%emt 00:00:33]} 26. axb4 {[%clk 00:02:41]}
{[%emt 00:00:20]} axb4 {[%clk 00:02:21]} {[%emt 00:00:01]} 27. f5 {[%clk
00:02:45]} Bd7 {[%clk 00:02:18]} {[%emt 00:00:07]} 28. g4 {[%clk 00:01:31]}
{[%emt 00:01:20]} b3 {[%clk 00:02:20]} {[%emt 00:00:04]} 29. Bb1 {[%clk
00:01:32]} {[%emt 00:00:03]} Rad8 {[%clk 00:00:36]} {[%emt 00:01:49]} 30. g5
{[%clk 00:01:36]} {[%emt 00:00:01]} hxg5 {[%clk 00:00:38]} {[%emt 00:00:03]} 31.
Qxg5 {[%clk 00:01:40]} {[%emt 00:00:01]} Nh7 {[%clk 00:00:36]} {[%emt
00:00:06]} 32. Qg4 {[%clk 00:00:54]} {[%emt 00:00:51]} f6 {[%clk 00:00:23]}
{[%emt 00:00:18]} 33. Ng6 {[%clk 00:00:36]} {[%emt 00:00:23]} Rxe2 {[%clk
00:00:27]} {[%emt 00:00:02]} 34. Rxe2 {[%clk 00:00:40]} Re8 {[%clk 00:00:32]}
35. Rxe8+ {[%clk 00:00:33]} {[%emt 00:00:12]} Bxe8 {[%clk 00:00:36]} 36. Nf4
{[%clk 00:00:34]} {[%emt 00:00:05]} Bd7 {[%clk 00:00:32]} {[%emt 00:00:08]} 37.
h4 {[%clk 00:00:35]} {[%emt 00:00:04]} Qe7 {[%clk 00:00:24]} {[%emt 00:00:13]}
38. Kf2 {[%clk 00:00:39]} {[%emt 00:00:01]} Qd6 {[%clk 00:00:26]} {[%emt
00:00:03]} 39. Qf3 {[%clk 00:00:34]} {[%emt 00:00:11]} Bc6 {[%clk 00:00:29]}
{[%emt 00:00:01]} 40. Kg3 {[%clk 00:00:22]} {[%emt 00:00:17]} Nf8 {[%clk
00:00:19]} {[%emt 00:00:16]} 41. Kg4 {[%clk 00:00:26]} Nh7 {[%clk 00:00:19]}
{[%emt 00:00:04]} 42. Qe3 {[%clk 00:00:29]} {[%emt 00:00:03]} Nf8 {[%clk
00:00:19]} {[%emt 00:00:05]} 43. Qf3 {[%clk 00:00:18]} {[%emt 00:00:16]} Nh7
{[%clk 00:00:22]} {[%emt 00:00:02]} 44. Qf2 {[%clk 00:00:21]} {[%emt 00:00:01]}
Nf8 {[%clk 00:00:24]} {[%emt 00:00:03]} 45. Qe2 {[%clk 00:00:13]} {[%emt
00:00:13]} Nh7 {[%clk 00:00:13]} {[%emt 00:00:16]} 46. Ng6 {[%clk 00:00:17]}
Nf8 {[%clk 00:00:13]} {[%emt 00:00:06]} 47. Ne7+ {[%clk 00:00:21]} {[%emt
00:00:01]} Kh8 {[%clk 00:00:17]} {[%emt 00:00:02]} 48. Kh3 {[%clk 00:00:19]}
{[%emt 00:00:07]} Qd7 {[%clk 00:00:16]} {[%emt 00:00:06]} 49. Qh5+ {[%clk
00:00:15]} {[%emt 00:00:09]} Nh7 {[%clk 00:00:19]} {[%emt 00:00:02]} 50. Ng6+
{[%clk 00:00:12]} {[%emt 00:00:08]} Kg8 {[%clk 00:00:23]} 51. Qe2 {[%clk
00:00:16]} Qe8 {[%clk 00:00:26]} {[%emt 00:00:02]} 52. Qxe8+ {[%clk 00:00:14]}
{[%emt 00:00:07]} Bxe8 {[%clk 00:00:30]} 53. Ne7+ {[%clk 00:00:18]} Kf8 {[%clk
00:00:33]} {[%emt 00:00:02]} 54. Nxd5 {[%clk 00:00:23]} Bf7 {[%clk 00:00:29]}
{[%emt 00:00:09]} 55. Ne3 {[%clk 00:00:23]} {[%emt 00:00:04]} Ke7 {[%clk
00:00:33]} {[%emt 00:00:01]} 56. Be4 {[%clk 00:00:27]} {[%emt 00:00:01]} Kd6
{[%clk 00:00:37]} 57. Kg4 {[%clk 00:00:30]} {[%emt 00:00:03]} Nf8 {[%clk
00:00:41]} {[%emt 00:00:01]} 58. Bf3 {[%clk 00:00:28]} {[%emt 00:00:07]} Nd7
{[%clk 00:00:44]} {[%emt 00:00:02]} 59. Be2 {[%clk 00:00:36]} {[%emt 00:00:02]}
Nb6 {[%clk 00:00:53]} {[%emt 00:00:02]} 60. Kf4 {[%clk 00:00:35]} {[%emt
00:00:05]} Kc6 {[%clk 00:00:54]} {[%emt 00:00:04]} 61. Ke4 {[%clk 00:00:38]}
{[%emt 00:00:02]} Kd6 {[%clk 00:00:58]} 62. h5 {[%clk 00:00:39]} {[%emt
00:00:04]} Kc6 {[%clk 00:00:58]} {[%emt 00:00:05]} 63. Kf3 {[%clk 00:00:28]}
{[%emt 00:00:16]} Kd6 {[%clk 00:01:01]} {[%emt 00:00:02]} 64. Kg3 {[%clk
00:00:31]} {[%emt 00:00:01]} Kc6 {[%clk 00:00:59]} {[%emt 00:00:07]} 65. Ng4
{[%clk 00:00:27]} {[%emt 00:00:09]} Bxh5 {[%clk 00:00:54]} {[%emt 00:00:11]} 66.
Bf3+ {[%clk 00:00:28]} {[%emt 00:00:04]} Kd6 {[%clk 00:00:54]} {[%emt
00:00:03]} 67. Kf4 {[%clk 00:00:10]} {[%emt 00:00:24]} Bxg4 {[%clk 00:00:57]}
{[%emt 00:00:03]} 68. Bxg4 {[%clk 00:00:14]} Na4 {[%clk 00:01:00]} {[%emt
00:00:02]} 69. Ke3 {[%clk 00:00:13]} {[%emt 00:00:05]} Nxb2 {[%clk 00:01:04]}
{[%emt 00:00:01]} 70. Kd2 {[%clk 00:00:18]} Nd3 {[%emt 00:00:05]} 0-1

[Event "Goteborg Open 2018"]
[Site "Molnlycke kulturhus, Biblioteksgatan 2, Molnlycke, Sweden"]
[Date "2018.08.17"]
[Round "1.10"]
[White "Andersson, Christian"]
[Black "Bengtsson, Siv"]
[Result "0-1"]
[TimeControl "15 minutes + 5 seconds per move from move one (Round 1 - 4) / 90 minutes + 30 seconds per move from move one (Round 5 - 8)"]
[WhiteFideId "1724789"]
[BlackFideId "1701673"]
[WhiteElo "1734"]
[BlackElo "2115"]

1. c4 {[%emt 00:09:26]} Nf6 {[%emt 00:00:10]} 2. g3 {[%emt 00:00:04]} g6 {[%emt
00:00:12]} 3. Nc3 {[%emt 00:00:03]} d5 {[%emt 00:00:13]} 4. cxd5 {[%emt
00:00:23]} Nxd5 {[%emt 00:00:03]} 5. Bg2 {[%emt 00:00:04]} Nxc3 {[%emt
00:00:04]} 6. bxc3 {[%emt 00:00:06]} Bg7 {[%emt 00:00:14]} 7. Nf3 {[%emt
00:00:56]} O-O {[%emt 00:00:15]} 8. O-O {[%emt 00:00:06]} c5 {[%emt 00:00:24]}
9. Rb1 {[%emt 00:00:23]} Qc7 {[%emt 00:01:53]} 10. Qc2 {[%emt 00:01:22]} Nc6
{[%emt 00:02:48]} 11. e3 {[%emt 00:00:32]} Bf5 {[%emt 00:01:23]} 12. e4 {[%emt
00:00:22]} Bg4 {[%emt 00:00:17]} 13. h3 {[%emt 00:00:20]} Bxf3 {[%emt
00:00:17]} 14. Bxf3 {[%emt 00:00:03]} Rad8 {[%emt 00:00:28]} 15. d3 {[%emt
00:00:34]} b6 {[%emt 00:00:31]} 16. Be3 {[%emt 00:00:22]} Qd7 {[%emt 00:00:24]}
17. Rbd1 {[%emt 00:01:00]} Qxh3 {[%emt 00:00:12]} 18. Rd2 {[%emt 00:00:34]} Ne5
{[%emt 00:00:59]} 19. Be2 {[%emt 00:01:29]} h5 {[%emt 00:01:24]} 20. Rfd1
{[%emt 00:00:24]} h4 {[%emt 00:00:49]} 21. Bf1 {[%emt 00:00:21]} Nf3# {[%emt
00:00:08]} 0-1

[Event "Goteborg Open 2018"]
[Site "Molnlycke kulturhus, Biblioteksgatan 2, Molnlycke, Sweden"]
[Date "2018.08.17"]
[Round "2.1"]
[White "Bengtsson, Tage"]
[Black "Golubka, Petro"]
[Result "0-1"]
[TimeControl "15 minutes + 5 seconds per move from move one (Round 1 - 4) / 90 minutes + 30 seconds per move from move one (Round 5 - 8)"]
[BlackTitle "IM"]
[WhiteFideId "1713850"]
[BlackFideId "14114224"]
[WhiteElo "2001"]
[BlackElo "2478"]

1. d4 {[%clk 00:15:04]} {[%emt 00:32:28]} Nf6 {[%clk 00:14:54]} {[%emt
00:00:11]} 2. c4 {[%clk 00:15:07]} {[%emt 00:00:02]} e6 {[%clk 00:14:58]}
{[%emt 00:00:01]} 3. Nc3 {[%clk 00:15:10]} {[%emt 00:00:02]} Bb4 {[%clk
00:15:02]} {[%emt 00:00:02]} 4. e3 {[%clk 00:15:13]} {[%emt 00:00:01]} d5
{[%clk 00:15:05]} {[%emt 00:00:02]} 5. Nge2 {[%clk 00:15:16]} {[%emt 00:00:02]}
O-O {[%clk 00:15:07]} {[%emt 00:00:03]} 6. a3 {[%clk 00:15:14]} {[%emt
00:00:07]} Be7 {[%clk 00:15:11]} {[%emt 00:00:02]} 7. Ng3 {[%clk 00:15:16]}
{[%emt 00:00:03]} c5 {[%clk 00:14:34]} {[%emt 00:00:43]} 8. cxd5 {[%clk
00:15:12]} {[%emt 00:00:08]} cxd4 {[%clk 00:14:36]} {[%emt 00:00:03]} 9. exd4
{[%clk 00:14:23]} {[%emt 00:00:53]} Nxd5 {[%clk 00:14:37]} {[%emt 00:00:05]} 10.
Bd3 {[%clk 00:14:24]} {[%emt 00:00:03]} Nc6 {[%clk 00:14:29]} {[%emt 00:00:14]}
11. Be4 {[%clk 00:13:49]} {[%emt 00:00:40]} f5 {[%clk 00:14:16]} {[%emt
00:00:19]} 12. Bxd5 {[%clk 00:10:50]} {[%emt 00:03:03]} exd5 {[%clk 00:14:20]}
{[%emt 00:00:01]} 13. Nge2 {[%clk 00:10:22]} {[%emt 00:00:33]} Be6 {[%clk
00:14:00]} {[%emt 00:00:25]} 14. Bf4 {[%clk 00:10:25]} {[%emt 00:00:02]} g5
{[%clk 00:14:01]} {[%emt 00:00:04]} 15. Be5 {[%clk 00:10:08]} {[%emt 00:00:22]}
Bf6 {[%clk 00:13:53]} {[%emt 00:00:13]} 16. f4 {[%clk 00:10:07]} {[%emt
00:00:06]} Bxe5 {[%clk 00:13:55]} {[%emt 00:00:03]} 17. fxe5 {[%clk 00:09:24]}
{[%emt 00:00:48]} f4 {[%clk 00:13:56]} {[%emt 00:00:04]} 18. Qd2 {[%clk
00:09:09]} {[%emt 00:00:20]} Na5 {[%clk 00:13:57]} {[%emt 00:00:03]} 19. Qd3
{[%clk 00:07:27]} {[%emt 00:01:49]} Nc4 {[%clk 00:13:57]} {[%emt 00:00:06]} 20.
Nd1 {[%clk 00:07:27]} {[%emt 00:00:05]} Rc8 {[%clk 00:13:49]} {[%emt 00:00:13]}
21. O-O {[%clk 00:07:27]} {[%emt 00:00:04]} Bf5 {[%emt 00:00:37]} 0-1